[Event "Late-Titled-Tuesday-Blitz-April-16-2024"]
[Site "Chess.com"]
[Date "2024.04.16"]
[Round "2"]
[White "katharinareinecke"]
[Black "jup1978"]
[Result "0-1"]
[WhiteElo "2009"]
[BlackElo "2432"]
[TimeControl "180+1"]
[EndTime "14:14:55 PDT"]
[Termination "jup1978 won by resignation"]

1. e4 {[%clk 0:03:00.9]} 1... c5 {[%clk 0:02:53.2]} 2. Nf3 {[%clk 0:02:53.3]}
2... d6 {[%clk 0:02:53.2]} 3. Bb5+ {[%clk 0:02:52.2]} 3... Bd7 {[%clk
0:02:52.7]} 4. Bxd7+ {[%clk 0:02:46.4]} 4... Nxd7 {[%clk 0:02:53.6]} 5. O-O
{[%clk 0:02:46.5]} 5... Ngf6 {[%clk 0:02:50.9]} 6. Re1 {[%clk 0:02:44]} 6... e6
{[%clk 0:02:51.4]} 7. c3 {[%clk 0:02:42.7]} 7... Be7 {[%clk 0:02:51.9]} 8. d4
{[%clk 0:02:42.8]} 8... O-O {[%clk 0:02:50]} 9. Nbd2 {[%clk 0:02:22.7]} 9...
cxd4 {[%clk 0:02:46.1]} 10. cxd4 {[%clk 0:02:21.5]} 10... Rc8 {[%clk 0:02:47]}
11. Nf1 {[%clk 0:02:18.8]} 11... Qb6 {[%clk 0:02:45.8]} 12. Ng3 {[%clk
0:02:04.7]} 12... Rc7 {[%clk 0:02:38.7]} 13. b3 {[%clk 0:02:00]} 13... Rfc8
{[%clk 0:02:37.6]} 14. Be3 {[%clk 0:01:59.7]} 14... Qa5 {[%clk 0:02:28.4]} 15.
Re2 {[%clk 0:01:28]} 15... Qa3 {[%clk 0:02:10.7]} 16. Rd2 {[%clk 0:01:21.6]}
16... Rc1 {[%clk 0:01:55.6]} 17. Rxc1 {[%clk 0:00:42.3]} 17... Rxc1 {[%clk
0:01:53.1]} 18. Qxc1 {[%clk 0:00:42]} 18... Qxc1+ {[%clk 0:01:52.4]} 19. Nf1
{[%clk 0:00:41.8]} 19... Nxe4 {[%clk 0:01:48.7]} 0-1

[Event "Late-Titled-Tuesday-Blitz-April-16-2024"]
[Site "Chess.com"]
[Date "2024.04.16"]
[Round "2"]
[White "Stanbad1"]
[Black "Charodej1"]
[Result "1-0"]
[WhiteElo "2616"]
[BlackElo "2302"]
[TimeControl "180+1"]
[EndTime "14:14:57 PDT"]
[Termination "Stanbad1 won by resignation"]

1. d4 {[%clk 0:03:00.9]} 1... Nf6 {[%clk 0:02:21.2]} 2. Nc3 {[%clk 0:02:59.7]}
2... d5 {[%clk 0:02:21]} 3. Bf4 {[%clk 0:02:58.8]} 3... a6 {[%clk 0:02:21.1]} 4.
e3 {[%clk 0:02:59.1]} 4... e6 {[%clk 0:02:19.6]} 5. Bd3 {[%clk 0:02:58.3]} 5...
c5 {[%clk 0:02:19.8]} 6. dxc5 {[%clk 0:02:58.9]} 6... Bxc5 {[%clk 0:02:19.3]} 7.
Nf3 {[%clk 0:02:59.3]} 7... Nc6 {[%clk 0:02:19.5]} 8. O-O {[%clk 0:02:59.5]}
8... O-O {[%clk 0:02:19.1]} 9. e4 {[%clk 0:03:00]} 9... Nb4 {[%clk 0:01:55.8]}
10. e5 {[%clk 0:02:54.2]} 10... Nxd3 {[%clk 0:01:49.6]} 11. Qxd3 {[%clk
0:02:53.7]} 11... Nd7 {[%clk 0:01:48.8]} 12. Ng5 {[%clk 0:02:41.9]} 12... g6
{[%clk 0:01:48]} 13. Qh3 {[%clk 0:02:41.2]} 13... h5 {[%clk 0:01:38.5]} 14. g4
{[%clk 0:02:40.5]} 14... Be7 {[%clk 0:01:24.3]} 15. Nf3 {[%clk 0:02:24.6]} 15...
hxg4 {[%clk 0:01:17.7]} 16. Qxg4 {[%clk 0:02:25.5]} 16... Kg7 {[%clk 0:01:18.3]}
17. h4 {[%clk 0:02:24]} 17... Rh8 {[%clk 0:01:18]} 18. Bg5 {[%clk 0:02:23.8]}
18... Rh5 {[%clk 0:01:03.9]} 19. Rae1 {[%clk 0:02:20]} 19... b5 {[%clk
0:00:50.8]} 20. Re3 {[%clk 0:02:10.6]} 20... b4 {[%clk 0:00:50.7]} 21. Ne2
{[%clk 0:02:10.2]} 21... Nc5 {[%clk 0:00:49.2]} 22. Ng3 {[%clk 0:02:09.9]} 22...
Rh8 {[%clk 0:00:47.2]} 23. h5 {[%clk 0:02:08.2]} 23... Bxg5 {[%clk 0:00:42.9]}
24. Nxg5 {[%clk 0:02:07.2]} 24... d4 {[%clk 0:00:42.8]} 25. Rf3 {[%clk
0:02:06.4]} 25... Ra7 {[%clk 0:00:41.6]} 26. Nxf7 {[%clk 0:02:05.3]} 1-0

[Event "Late-Titled-Tuesday-Blitz-April-16-2024"]
[Site "Chess.com"]
[Date "2024.04.16"]
[Round "2"]
[White "ChadBiryani"]
[Black "Agustin_Meza"]
[Result "1-0"]
[WhiteElo "2477"]
[BlackElo "2196"]
[TimeControl "180+1"]
[EndTime "14:15:04 PDT"]
[Termination "ChadBiryani won by resignation"]

1. d4 {[%clk 0:03:00.9]} 1... d5 {[%clk 0:02:56.1]} 2. Bf4 {[%clk 0:02:59.8]}
2... e6 {[%clk 0:02:56.1]} 3. e3 {[%clk 0:03:00.1]} 3... Bd6 {[%clk 0:02:56.5]}
4. Nf3 {[%clk 0:02:59.9]} 4... Bxf4 {[%clk 0:02:55.9]} 5. exf4 {[%clk
0:03:00.3]} 5... Nf6 {[%clk 0:02:56.8]} 6. Bd3 {[%clk 0:03:00.2]} 6... c5 {[%clk
0:02:57.4]} 7. c3 {[%clk 0:03:00.6]} 7... Nc6 {[%clk 0:02:57.5]} 8. O-O {[%clk
0:03:00.6]} 8... cxd4 {[%clk 0:02:57.5]} 9. cxd4 {[%clk 0:03:00.7]} 9... O-O
{[%clk 0:02:57.3]} 10. a4 {[%clk 0:03:00.2]} 10... Bd7 {[%clk 0:02:51.6]} 11.
Nc3 {[%clk 0:02:57.9]} 11... a6 {[%clk 0:02:49.6]} 12. Ra3 {[%clk 0:02:57.4]}
12... Rc8 {[%clk 0:02:46.1]} 13. Ne5 {[%clk 0:02:44.2]} 13... Nxe5 {[%clk
0:02:24.4]} 14. fxe5 {[%clk 0:02:44.2]} 14... Ne8 {[%clk 0:02:25]} 15. Qh5
{[%clk 0:02:29.5]} 15... f5 {[%clk 0:02:20.5]} 16. exf6 {[%clk 0:02:23.4]} 16...
Nxf6 {[%clk 0:02:20.6]} 17. Qh4 {[%clk 0:02:23.8]} 17... Qb6 {[%clk 0:01:52.8]}
18. Nd1 {[%clk 0:02:16.5]} 18... Rc1 {[%clk 0:01:46.4]} 19. Rc3 {[%clk
0:01:48.5]} 19... Rxc3 {[%clk 0:01:45.3]} 20. bxc3 {[%clk 0:01:48]} 20... Bxa4
{[%clk 0:01:42.2]} 21. Ne3 {[%clk 0:01:46.1]} 21... Bd7 {[%clk 0:01:37.8]} 22.
Ng4 {[%clk 0:01:42.6]} 22... g6 {[%clk 0:01:01.7]} 23. Nxf6+ {[%clk 0:01:37.1]}
23... Rxf6 {[%clk 0:00:57.2]} 24. Qxf6 {[%clk 0:01:37.4]} 1-0

[Event "Late-Titled-Tuesday-Blitz-April-16-2024"]
[Site "Chess.com"]
[Date "2024.04.16"]
[Round "2"]
[White "SergioMoralesG"]
[Black "Aragon"]
[Result "1-0"]
[WhiteElo "2438"]
[BlackElo "2063"]
[TimeControl "180+1"]
[EndTime "14:15:08 PDT"]
[Termination "SergioMoralesG won by resignation"]

1. d4 {[%clk 0:03:00.9]} 1... b5 {[%clk 0:02:58.5]} 2. e4 {[%clk 0:03:00.2]}
2... a6 {[%clk 0:02:58.3]} 3. Nf3 {[%clk 0:02:58.5]} 3... Bb7 {[%clk 0:02:58.2]}
4. Bd3 {[%clk 0:02:59.1]} 4... e6 {[%clk 0:02:57.5]} 5. O-O {[%clk 0:02:58.6]}
5... Nf6 {[%clk 0:02:57.1]} 6. Re1 {[%clk 0:02:55.3]} 6... d5 {[%clk 0:02:56.5]}
7. exd5 {[%clk 0:02:51.5]} 7... Nxd5 {[%clk 0:02:55.4]} 8. a4 {[%clk 0:02:48.4]}
8... b4 {[%clk 0:02:53.9]} 9. Nbd2 {[%clk 0:02:41]} 9... c5 {[%clk 0:02:47.5]}
10. Ne4 {[%clk 0:02:35.5]} 10... Nd7 {[%clk 0:02:36]} 11. Ne5 {[%clk 0:02:08]}
11... cxd4 {[%clk 0:02:07.6]} 12. Nxf7 {[%clk 0:01:32.1]} 12... Kxf7 {[%clk
0:01:55.8]} 13. Ng5+ {[%clk 0:01:32.2]} 13... Kg8 {[%clk 0:01:52.8]} 14. Qh5
{[%clk 0:01:28.8]} 14... g6 {[%clk 0:01:39.4]} 15. Bxg6 {[%clk 0:01:27.4]} 15...
e5 {[%clk 0:00:58.9]} 16. Bf7+ {[%clk 0:01:18.2]} 16... Kg7 {[%clk 0:00:58.9]}
17. Ne6+ {[%clk 0:01:16.7]} 1-0

[Event "Late-Titled-Tuesday-Blitz-April-16-2024"]
[Site "Chess.com"]
[Date "2024.04.16"]
[Round "2"]
[White "ilm2034"]
[Black "NCchamp"]
[Result "1-0"]
[WhiteElo "2568"]
[BlackElo "2244"]
[TimeControl "180+1"]
[EndTime "14:15:11 PDT"]
[Termination "ilm2034 won by resignation"]

1. e4 {[%clk 0:02:57]} 1... c6 {[%clk 0:02:54.7]} 2. d4 {[%clk 0:02:53.1]} 2...
d5 {[%clk 0:02:55.6]} 3. Nc3 {[%clk 0:02:52.4]} 3... dxe4 {[%clk 0:02:55.2]} 4.
Nxe4 {[%clk 0:02:53.3]} 4... Nf6 {[%clk 0:02:55.1]} 5. Nxf6+ {[%clk 0:02:53.3]}
5... exf6 {[%clk 0:02:56]} 6. Nf3 {[%clk 0:02:49.9]} 6... Bd6 {[%clk 0:02:55.6]}
7. c4 {[%clk 0:02:49.6]} 7... Na6 {[%clk 0:02:51.8]} 8. Be2 {[%clk 0:02:49.1]}
8... Bb4+ {[%clk 0:02:46.9]} 9. Bd2 {[%clk 0:02:48.6]} 9... Bxd2+ {[%clk
0:02:44.7]} 10. Qxd2 {[%clk 0:02:49.5]} 10... Nc7 {[%clk 0:02:44.4]} 11. O-O
{[%clk 0:02:49.9]} 11... O-O {[%clk 0:02:43.1]} 12. Rfe1 {[%clk 0:02:50]} 12...
Bg4 {[%clk 0:02:42.1]} 13. Rad1 {[%clk 0:02:49.8]} 13... Qd7 {[%clk 0:02:37.1]}
14. Qf4 {[%clk 0:02:50.2]} 14... Bf5 {[%clk 0:02:32.1]} 15. Nh4 {[%clk
0:02:47.6]} 15... Bg6 {[%clk 0:02:31.8]} 16. Bg4 {[%clk 0:02:46.7]} 16... Qd8
{[%clk 0:02:29.5]} 17. Qg3 {[%clk 0:02:41.7]} 17... Re8 {[%clk 0:02:23.4]} 18.
Rxe8+ {[%clk 0:02:39.8]} 18... Nxe8 {[%clk 0:02:24.3]} 19. f4 {[%clk 0:02:39.6]}
19... h6 {[%clk 0:02:05.7]} 20. Nxg6 {[%clk 0:02:38]} 20... fxg6 {[%clk
0:02:05.7]} 21. Be6+ {[%clk 0:02:38.7]} 21... Kh7 {[%clk 0:02:05.8]} 22. h4
{[%clk 0:02:35.7]} 22... Nd6 {[%clk 0:01:48.5]} 23. c5 {[%clk 0:02:25.8]} 23...
Nf5 {[%clk 0:01:47.7]} 24. Qd3 {[%clk 0:02:25.3]} 24... Ne7 {[%clk 0:01:44.6]}
25. h5 {[%clk 0:02:22.9]} 25... Qc7 {[%clk 0:01:34.9]} 26. hxg6+ {[%clk
0:02:16.8]} 26... Kh8 {[%clk 0:01:22]} 27. g3 {[%clk 0:02:16.3]} 27... Rd8
{[%clk 0:01:20.1]} 28. Qe4 {[%clk 0:02:14.1]} 28... b6 {[%clk 0:01:11.4]} 29. b4
{[%clk 0:02:13.2]} 29... a5 {[%clk 0:01:04.3]} 30. a3 {[%clk 0:02:10.4]} 30...
axb4 {[%clk 0:00:47.4]} 31. axb4 {[%clk 0:02:11.3]} 31... bxc5 {[%clk
0:00:47.5]} 32. bxc5 {[%clk 0:02:12.2]} 32... Qa7 {[%clk 0:00:41.4]} 33. Kg2
{[%clk 0:02:12.1]} 33... Qa2+ {[%clk 0:00:34.8]} 34. Bxa2 {[%clk 0:02:11.5]} 1-0

[Event "Late-Titled-Tuesday-Blitz-April-16-2024"]
[Site "Chess.com"]
[Date "2024.04.16"]
[Round "2"]
[White "Tolyanius"]
[Black "SantoBlue"]
[Result "0-1"]
[WhiteElo "2628"]
[BlackElo "3018"]
[TimeControl "180+1"]
[EndTime "14:15:14 PDT"]
[Termination "SantoBlue won by resignation"]

1. e4 {[%clk 0:03:00.9]} 1... d6 {[%clk 0:02:57.9]} 2. d4 {[%clk 0:03:01]} 2...
Nf6 {[%clk 0:02:56.3]} 3. Nc3 {[%clk 0:03:01.5]} 3... e5 {[%clk 0:02:56.3]} 4.
dxe5 {[%clk 0:03:01.1]} 4... dxe5 {[%clk 0:02:56.4]} 5. Qxd8+ {[%clk 0:03:02]}
5... Kxd8 {[%clk 0:02:57.2]} 6. Bg5 {[%clk 0:03:02.9]} 6... c6 {[%clk
0:02:54.8]} 7. O-O-O+ {[%clk 0:03:03.6]} 7... Ke8 {[%clk 0:02:55]} 8. Bc4 {[%clk
0:02:53.4]} 8... Nbd7 {[%clk 0:02:54.1]} 9. f3 {[%clk 0:02:52.7]} 9... b5 {[%clk
0:02:53.4]} 10. Bb3 {[%clk 0:02:53.3]} 10... Bc5 {[%clk 0:02:45.7]} 11. a4
{[%clk 0:02:49]} 11... a6 {[%clk 0:02:45.2]} 12. Nge2 {[%clk 0:02:46.4]} 12...
h6 {[%clk 0:02:44.5]} 13. Bd2 {[%clk 0:02:45.2]} 13... b4 {[%clk 0:02:35.5]} 14.
Na2 {[%clk 0:02:42.5]} 14... a5 {[%clk 0:02:35.7]} 15. Kb1 {[%clk 0:02:43]}
15... Ba6 {[%clk 0:02:35.4]} 16. Nac1 {[%clk 0:02:43.7]} 16... Nb6 {[%clk
0:02:35.2]} 17. Nd3 {[%clk 0:02:37.8]} 17... Bd6 {[%clk 0:02:29]} 18. Be3 {[%clk
0:02:30.6]} 18... Nbd7 {[%clk 0:02:29.2]} 19. c4 {[%clk 0:02:24.1]} 19... Ke7
{[%clk 0:02:22.1]} 20. Ng3 {[%clk 0:02:11.1]} 20... g6 {[%clk 0:02:20.9]} 21.
Rc1 {[%clk 0:02:10.8]} 21... c5 {[%clk 0:02:20.7]} 22. Rhf1 {[%clk 0:02:03.6]}
22... Bb7 {[%clk 0:02:15.7]} 23. Bd1 {[%clk 0:02:01.4]} 23... Rac8 {[%clk
0:02:11.1]} 24. b3 {[%clk 0:02:01.9]} 24... Nf8 {[%clk 0:02:11.6]} 25. Bc2
{[%clk 0:02:02.1]} 25... Ne6 {[%clk 0:02:11.7]} 26. Rce1 {[%clk 0:02:02.6]}
26... h5 {[%clk 0:02:10.4]} 27. f4 {[%clk 0:01:53]} 27... Ng4 {[%clk 0:02:08.9]}
28. f5 {[%clk 0:01:48.4]} 28... Nxe3 {[%clk 0:02:08.4]} 29. Re2 {[%clk
0:01:40.7]} 29... Nxf1 {[%clk 0:02:07.8]} 30. Nxf1 {[%clk 0:00:53.6]} 30... Nd4
{[%clk 0:02:02.5]} 31. Re3 {[%clk 0:00:52]} 31... Nxc2 {[%clk 0:01:58.5]} 32.
Kxc2 {[%clk 0:00:52.9]} 32... gxf5 {[%clk 0:01:59.3]} 33. Ng3 {[%clk 0:00:51.5]}
33... Bxe4 {[%clk 0:01:57.5]} 0-1

[Event "Late-Titled-Tuesday-Blitz-April-16-2024"]
[Site "Chess.com"]
[Date "2024.04.16"]
[Round "2"]
[White "combidharma"]
[Black "MaiqMaster"]
[Result "1-0"]
[WhiteElo "2821"]
[BlackElo "2407"]
[TimeControl "180+1"]
[EndTime "14:15:16 PDT"]
[Termination "combidharma won by resignation"]

1. d4 {[%clk 0:02:59.3]} 1... d5 {[%clk 0:02:45.9]} 2. c4 {[%clk 0:02:59.2]}
2... e6 {[%clk 0:02:46.1]} 3. g3 {[%clk 0:02:55.2]} 3... dxc4 {[%clk 0:02:44.2]}
4. Nf3 {[%clk 0:02:47.7]} 4... c5 {[%clk 0:02:39.3]} 5. Bg2 {[%clk 0:02:42.6]}
5... Nc6 {[%clk 0:02:38.1]} 6. Na3 {[%clk 0:02:24.9]} 6... cxd4 {[%clk
0:02:06.5]} 7. Nxc4 {[%clk 0:02:16.5]} 7... Bb4+ {[%clk 0:01:58.7]} 8. Bd2
{[%clk 0:02:15.2]} 8... Bxd2+ {[%clk 0:01:58.2]} 9. Qxd2 {[%clk 0:02:16.1]} 9...
Nge7 {[%clk 0:01:57.2]} 10. O-O {[%clk 0:02:06.2]} 10... f6 {[%clk 0:01:54.6]}
11. b4 {[%clk 0:01:50.9]} 11... e5 {[%clk 0:01:49.2]} 12. b5 {[%clk 0:01:50.8]}
12... Nb8 {[%clk 0:01:46.8]} 13. e3 {[%clk 0:01:51.4]} 13... Be6 {[%clk
0:01:41.5]} 14. Rac1 {[%clk 0:01:40.8]} 14... dxe3 {[%clk 0:01:35.2]} 15. Nd6+
{[%clk 0:01:21.6]} 15... Kf8 {[%clk 0:01:31.8]} 16. fxe3 {[%clk 0:01:21.6]}
16... Nf5 {[%clk 0:01:18.6]} 17. Nxf5 {[%clk 0:01:14.2]} 17... Qxd2 {[%clk
0:00:59]} 18. Nxd2 {[%clk 0:01:15.1]} 18... g6 {[%clk 0:00:59.5]} 19. Bxb7
{[%clk 0:01:12.5]} 1-0

[Event "Late-Titled-Tuesday-Blitz-April-16-2024"]
[Site "Chess.com"]
[Date "2024.04.16"]
[Round "2"]
[White "eljanov"]
[Black "m_ezat"]
[Result "1-0"]
[WhiteElo "2899"]
[BlackElo "2585"]
[TimeControl "180+1"]
[EndTime "14:15:22 PDT"]
[Termination "eljanov won on time"]

1. e4 {[%clk 0:03:00.9]} 1... c6 {[%clk 0:02:57.2]} 2. d4 {[%clk 0:02:59.8]}
2... d5 {[%clk 0:02:57.6]} 3. exd5 {[%clk 0:03:00]} 3... cxd5 {[%clk 0:02:57.7]}
4. Nf3 {[%clk 0:03:00.7]} 4... Nc6 {[%clk 0:02:57.6]} 5. c3 {[%clk 0:03:01.2]}
5... Bg4 {[%clk 0:02:56.2]} 6. h3 {[%clk 0:03:00.4]} 6... Bh5 {[%clk 0:02:55]}
7. Qb3 {[%clk 0:03:00.7]} 7... Qd7 {[%clk 0:02:49.9]} 8. Ne5 {[%clk 0:02:58]}
8... Nxe5 {[%clk 0:02:49.3]} 9. dxe5 {[%clk 0:02:58.9]} 9... a6 {[%clk
0:02:48.5]} 10. c4 {[%clk 0:02:59.2]} 10... Rd8 {[%clk 0:02:32.5]} 11. Nc3
{[%clk 0:02:51.2]} 11... d4 {[%clk 0:02:29.2]} 12. Ne4 {[%clk 0:02:45.5]} 12...
e6 {[%clk 0:02:29.4]} 13. Bg5 {[%clk 0:02:32.8]} 13... Rc8 {[%clk 0:02:16.1]}
14. Bd3 {[%clk 0:02:29.5]} 14... Bg6 {[%clk 0:02:15.1]} 15. O-O {[%clk
0:02:26.4]} 15... Nh6 {[%clk 0:02:06.8]} 16. Rfd1 {[%clk 0:02:03.4]} 16... Nf5
{[%clk 0:01:33.4]} 17. g4 {[%clk 0:02:03.1]} 17... h6 {[%clk 0:01:26.1]} 18. Bf6
{[%clk 0:02:03.3]} 1-0

[Event "Late-Titled-Tuesday-Blitz-April-16-2024"]
[Site "Chess.com"]
[Date "2024.04.16"]
[Round "2"]
[White "MFatigue"]
[Black "campochess"]
[Result "1-0"]
[WhiteElo "2555"]
[BlackElo "2214"]
[TimeControl "180+1"]
[EndTime "14:15:25 PDT"]
[Termination "MFatigue won by resignation"]

1. e4 {[%clk 0:03:00.9]} 1... c5 {[%clk 0:02:59.8]} 2. a3 {[%clk 0:03:01.2]}
2... e6 {[%clk 0:02:58.7]} 3. b4 {[%clk 0:03:01.6]} 3... b6 {[%clk 0:02:57.3]}
4. b5 {[%clk 0:03:00.9]} 4... Bb7 {[%clk 0:02:56.8]} 5. Nc3 {[%clk 0:03:01.2]}
5... Nf6 {[%clk 0:02:56]} 6. e5 {[%clk 0:03:01.4]} 6... Nd5 {[%clk 0:02:52.7]}
7. Nxd5 {[%clk 0:03:02]} 7... Bxd5 {[%clk 0:02:49.8]} 8. c4 {[%clk 0:03:01.9]}
8... Bb7 {[%clk 0:02:49.5]} 9. Bb2 {[%clk 0:02:59.9]} 9... d5 {[%clk 0:02:49]}
10. exd6 {[%clk 0:02:59.5]} 10... Qxd6 {[%clk 0:02:47.5]} 11. d4 {[%clk
0:02:58.3]} 11... cxd4 {[%clk 0:02:46.3]} 12. Qxd4 {[%clk 0:02:59.2]} 12... Qxd4
{[%clk 0:02:46.1]} 13. Bxd4 {[%clk 0:03:00.1]} 13... Nd7 {[%clk 0:02:45.5]} 14.
Nf3 {[%clk 0:02:55.7]} 14... f6 {[%clk 0:02:45.2]} 15. Be2 {[%clk 0:02:53.9]}
15... Bc5 {[%clk 0:02:45]} 16. Bxc5 {[%clk 0:02:41.9]} 16... Nxc5 {[%clk
0:02:44.1]} 17. O-O {[%clk 0:02:42.8]} 17... O-O {[%clk 0:02:42.9]} 18. Rfd1
{[%clk 0:02:43.5]} 18... Rad8 {[%clk 0:02:40.9]} 19. Kf1 {[%clk 0:02:36.1]}
19... e5 {[%clk 0:02:40.8]} 20. Ke1 {[%clk 0:02:35.1]} 20... Kf7 {[%clk
0:02:40.8]} 21. a4 {[%clk 0:02:29.8]} 21... Ne4 {[%clk 0:02:38.6]} 22. a5 {[%clk
0:02:26.3]} 22... Nc3 {[%clk 0:02:35.5]} 23. Rxd8 {[%clk 0:02:25.4]} 23... Rxd8
{[%clk 0:02:35.1]} 24. axb6 {[%clk 0:02:26.3]} 24... axb6 {[%clk 0:02:34]} 25.
Ra7 {[%clk 0:02:25.6]} 25... Rd7 {[%clk 0:02:33.8]} 26. Nd2 {[%clk 0:02:17.1]}
26... Nxe2 {[%clk 0:02:32.2]} 27. Kxe2 {[%clk 0:02:17.2]} 27... Bf3+ {[%clk
0:02:31.7]} 28. Kxf3 {[%clk 0:02:12.7]} 28... Rxa7 {[%clk 0:02:31.6]} 29. Ke4
{[%clk 0:01:57.7]} 29... Ke6 {[%clk 0:02:31.6]} 30. g4 {[%clk 0:01:58.6]} 30...
g6 {[%clk 0:02:30.9]} 31. Kd3 {[%clk 0:01:59.3]} 31... f5 {[%clk 0:02:28.5]} 32.
gxf5+ {[%clk 0:01:57.9]} 32... gxf5 {[%clk 0:02:27.5]} 33. Kc3 {[%clk
0:01:58.8]} 33... Ra3+ {[%clk 0:02:25.9]} 34. Kb4 {[%clk 0:01:59.1]} 34... Rd3
{[%clk 0:02:25.9]} 35. Nb3 {[%clk 0:01:59.2]} 35... Kd6 {[%clk 0:02:19.2]} 36.
h4 {[%clk 0:01:52.7]} 36... f4 {[%clk 0:02:17.1]} 37. Nc1 {[%clk 0:01:45.6]}
37... e4 {[%clk 0:02:16]} 38. Nxd3 {[%clk 0:01:44.4]} 38... exd3 {[%clk
0:02:14.6]} 39. Kc3 {[%clk 0:01:45]} 39... d2 {[%clk 0:02:11.5]} 40. Kxd2 {[%clk
0:01:45.2]} 40... Kc5 {[%clk 0:02:08.5]} 41. Kd3 {[%clk 0:01:30.9]} 41... h6
{[%clk 0:02:05.9]} 42. h5 {[%clk 0:01:29.6]} 42... Kd6 {[%clk 0:01:52.3]} 43.
Kd4 {[%clk 0:01:22.9]} 43... f3 {[%clk 0:01:52.2]} 44. Ke4 {[%clk 0:01:21.8]}
44... Kc5 {[%clk 0:01:51.6]} 45. Kd3 {[%clk 0:01:21.6]} 45... Kd6 {[%clk
0:01:49.1]} 46. Kd4 {[%clk 0:01:22]} 46... Ke6 {[%clk 0:01:49]} 47. c5 {[%clk
0:01:22.7]} 47... bxc5+ {[%clk 0:01:48.2]} 48. Kxc5 {[%clk 0:01:23.6]} 1-0

[Event "Late-Titled-Tuesday-Blitz-April-16-2024"]
[Site "Chess.com"]
[Date "2024.04.16"]
[Round "2"]
[White "expii"]
[Black "VinzentSpitzl"]
[Result "0-1"]
[WhiteElo "2223"]
[BlackElo "2483"]
[TimeControl "180+1"]
[EndTime "14:15:34 PDT"]
[Termination "VinzentSpitzl won on time"]

1. e4 {[%clk 0:03:00.9]} 1... c5 {[%clk 0:02:59.9]} 2. Nf3 {[%clk 0:03:00.6]}
2... d6 {[%clk 0:03:00.4]} 3. d4 {[%clk 0:03:01.1]} 3... cxd4 {[%clk 0:03:01.3]}
4. Nxd4 {[%clk 0:03:01.6]} 4... Nf6 {[%clk 0:03:02]} 5. Nc3 {[%clk 0:02:58.7]}
5... a6 {[%clk 0:03:02.4]} 6. g3 {[%clk 0:02:52.8]} 6... e5 {[%clk 0:03:01.8]}
7. Nde2 {[%clk 0:02:42.9]} 7... Be7 {[%clk 0:03:01.4]} 8. Bg2 {[%clk 0:02:37.6]}
8... b5 {[%clk 0:03:00.8]} 9. a3 {[%clk 0:02:36.7]} 9... Bb7 {[%clk 0:03:00.1]}
10. O-O {[%clk 0:02:30.8]} 10... Nbd7 {[%clk 0:02:59.6]} 11. Be3 {[%clk
0:02:19.6]} 11... O-O {[%clk 0:02:58.7]} 12. h3 {[%clk 0:02:15.3]} 12... Nb6
{[%clk 0:02:58.3]} 13. b3 {[%clk 0:02:01.7]} 13... Rc8 {[%clk 0:02:56.1]} 14.
Qd2 {[%clk 0:01:41.9]} 14... d5 {[%clk 0:02:55.9]} 15. Bxb6 {[%clk 0:01:13.8]}
15... Qxb6 {[%clk 0:02:56.8]} 16. exd5 {[%clk 0:01:12.8]} 16... Rfd8 {[%clk
0:02:57.2]} 17. Rad1 {[%clk 0:01:10.8]} 17... Bxa3 {[%clk 0:02:55.3]} 18. Qe3
{[%clk 0:00:57.9]} 18... Qxe3 {[%clk 0:02:47.1]} 19. fxe3 {[%clk 0:00:58.8]}
19... Bc5 {[%clk 0:02:46.7]} 20. Rd3 {[%clk 0:00:50.3]} 20... b4 {[%clk
0:02:18.3]} 21. Ne4 {[%clk 0:00:44.7]} 21... Nxe4 {[%clk 0:02:11.4]} 22. Bxe4
{[%clk 0:00:45.6]} 22... g6 {[%clk 0:02:10.7]} 23. g4 {[%clk 0:00:29.8]} 23...
Bb6 {[%clk 0:02:10.5]} 24. c3 {[%clk 0:00:11.1]} 24... bxc3 {[%clk 0:02:05.5]}
25. Nxc3 {[%clk 0:00:12]} 25... Kg7 {[%clk 0:02:03.1]} 26. Na4 {[%clk
0:00:04.2]} 26... Ba7 {[%clk 0:02:02.7]} 0-1

[Event "Late-Titled-Tuesday-Blitz-April-16-2024"]
[Site "Chess.com"]
[Date "2024.04.16"]
[Round "2"]
[White "reevecanada"]
[Black "TheoSlade"]
[Result "1-0"]
[WhiteElo "2614"]
[BlackElo "2379"]
[TimeControl "180+1"]
[EndTime "14:15:50 PDT"]
[Termination "reevecanada won by resignation"]

1. e4 {[%clk 0:02:57]} 1... e5 {[%clk 0:03:00.3]} 2. Nf3 {[%clk 0:02:55.6]} 2...
Nc6 {[%clk 0:03:00.9]} 3. d4 {[%clk 0:02:56]} 3... exd4 {[%clk 0:03:01.8]} 4.
Nxd4 {[%clk 0:02:56]} 4... Nf6 {[%clk 0:03:02.5]} 5. Nxc6 {[%clk 0:02:55.9]}
5... bxc6 {[%clk 0:03:03.3]} 6. e5 {[%clk 0:02:56.1]} 6... Qe7 {[%clk 0:03:04]}
7. Qe2 {[%clk 0:02:56.1]} 7... Nd5 {[%clk 0:03:04.7]} 8. c4 {[%clk 0:02:56.2]}
8... Ba6 {[%clk 0:03:03.9]} 9. b3 {[%clk 0:02:55.2]} 9... g6 {[%clk 0:03:04]}
10. Bb2 {[%clk 0:02:43.4]} 10... Bg7 {[%clk 0:03:04.1]} 11. g3 {[%clk
0:02:37.2]} 11... O-O {[%clk 0:03:04.3]} 12. Bg2 {[%clk 0:02:37.8]} 12... Rae8
{[%clk 0:03:02.1]} 13. f4 {[%clk 0:02:18.8]} 13... f6 {[%clk 0:02:37.6]} 14. O-O
{[%clk 0:02:16.1]} 14... fxe5 {[%clk 0:02:34.3]} 15. fxe5 {[%clk 0:02:17]} 15...
Rxf1+ {[%clk 0:02:11.6]} 16. Bxf1 {[%clk 0:02:11.8]} 16... Bxe5 {[%clk
0:01:58.9]} 17. Bxe5 {[%clk 0:01:52.7]} 17... Qxe5 {[%clk 0:01:59.1]} 18. Qxe5
{[%clk 0:01:52.9]} 18... Rxe5 {[%clk 0:01:59.7]} 19. Nd2 {[%clk 0:01:52.5]}
19... Nf6 {[%clk 0:01:45.7]} 20. Bd3 {[%clk 0:01:47.7]} 20... Re3 {[%clk
0:01:40.2]} 21. Bf1 {[%clk 0:01:45.8]} 21... d5 {[%clk 0:01:38.4]} 22. cxd5
{[%clk 0:01:39.2]} 22... Bxf1 {[%clk 0:01:31.3]} 23. Nxf1 {[%clk 0:01:40.1]}
23... Rc3 {[%clk 0:01:24.7]} 24. dxc6 {[%clk 0:01:38.4]} 24... Rxc6 {[%clk
0:01:25.6]} 25. Rd1 {[%clk 0:01:37.9]} 25... Kf7 {[%clk 0:01:20.5]} 26. Rd4
{[%clk 0:01:36.8]} 26... Ra6 {[%clk 0:01:17.9]} 27. a4 {[%clk 0:01:35.4]} 27...
Rb6 {[%clk 0:01:18]} 28. Rc4 {[%clk 0:01:34.3]} 28... Nd5 {[%clk 0:01:13.7]} 29.
Rc5 {[%clk 0:01:33.7]} 29... Ke6 {[%clk 0:01:10.5]} 30. Nd2 {[%clk 0:01:30.6]}
30... Kd6 {[%clk 0:00:52.8]} 31. Rc1 {[%clk 0:01:29.3]} 31... Rb8 {[%clk
0:00:48.8]} 32. Nc4+ {[%clk 0:01:28]} 32... Kd7 {[%clk 0:00:47.3]} 33. Ne5+
{[%clk 0:01:27.4]} 33... Ke6 {[%clk 0:00:45.1]} 34. Nc6 {[%clk 0:01:26.5]} 34...
Rxb3 {[%clk 0:00:43.8]} 35. Nd4+ {[%clk 0:01:26.4]} 1-0